[Event "Early-Titled-Tuesday-Blitz-October-03-2023"]
[Site "Chess.com"]
[Date "2023.10.03"]
[Round "2"]
[White "Xqswdc"]
[Black "CristianS27"]
[Result "1/2-1/2"]
[WhiteElo "2308"]
[BlackElo "2502"]
[TimeControl "180+1"]
[EndTime "8:19:02 PDT"]
[Termination "Game drawn - insufficient material"]

1. e4 {[%clk 0:03:00.9]} 1... e5 {[%clk 0:02:58.1]} 2. Nf3 {[%clk 0:02:58.6]}
2... Nc6 {[%clk 0:02:58.7]} 3. Bb5 {[%clk 0:02:59.2]} 3... a6 {[%clk 0:02:58.5]}
4. Ba4 {[%clk 0:02:58.3]} 4... Nf6 {[%clk 0:02:59.1]} 5. O-O {[%clk 0:02:58.5]}
5... Nxe4 {[%clk 0:02:59.3]} 6. d4 {[%clk 0:02:43.9]} 6... b5 {[%clk 0:02:59.1]}
7. Bb3 {[%clk 0:02:42.6]} 7... d5 {[%clk 0:02:59.3]} 8. dxe5 {[%clk 0:02:43]}
8... Be6 {[%clk 0:02:59.6]} 9. c3 {[%clk 0:02:39.9]} 9... Bc5 {[%clk 0:02:58.1]}
10. Qd3 {[%clk 0:02:35.5]} 10... O-O {[%clk 0:02:56.6]} 11. Nbd2 {[%clk
0:02:34.3]} 11... f5 {[%clk 0:02:30.3]} 12. exf6 {[%clk 0:02:32.6]} 12... Nxf6
{[%clk 0:02:29.8]} 13. Re1 {[%clk 0:02:23.8]} 13... Bg4 {[%clk 0:02:18.5]} 14.
Ne5 {[%clk 0:02:14.7]} 14... Nxe5 {[%clk 0:02:00.9]} 15. Rxe5 {[%clk 0:02:14.7]}
15... c6 {[%clk 0:01:54.9]} 16. Nf1 {[%clk 0:01:53.9]} 16... Bxf2+ {[%clk
0:01:43.2]} 17. Kxf2 {[%clk 0:01:53.9]} 17... Nd7+ {[%clk 0:01:43]} 18. Kg1
{[%clk 0:01:33.1]} 18... Nxe5 {[%clk 0:01:42.7]} 19. Qg3 {[%clk 0:01:33.8]}
19... Qf6 {[%clk 0:01:28.4]} 20. Be3 {[%clk 0:01:29.6]} 20... Rae8 {[%clk
0:01:24.3]} 21. Bd4 {[%clk 0:01:25.5]} 21... Bh5 {[%clk 0:01:09.9]} 22. Re1
{[%clk 0:01:15.3]} 22... Kh8 {[%clk 0:01:10.2]} 23. Bxe5 {[%clk 0:01:08.9]}
23... Rxe5 {[%clk 0:01:08.7]} 24. Ne3 {[%clk 0:00:34.7]} 24... Qf4 {[%clk
0:00:48.5]} 25. Qxf4 {[%clk 0:00:29.7]} 25... Rxf4 {[%clk 0:00:49.4]} 26. g3
{[%clk 0:00:25.1]} 26... Rfe4 {[%clk 0:00:49.7]} 27. Kf2 {[%clk 0:00:25.6]}
27... Kg8 {[%clk 0:00:47.9]} 28. Bc2 {[%clk 0:00:24.5]} 28... Rxe3 {[%clk
0:00:25.1]} 29. Rxe3 {[%clk 0:00:24.5]} 29... Rxe3 {[%clk 0:00:26]} 30. Kxe3
{[%clk 0:00:25.4]} 30... c5 {[%clk 0:00:23.4]} 31. Kf4 {[%clk 0:00:23.6]} 31...
Bf7 {[%clk 0:00:12.3]} 32. Ke5 {[%clk 0:00:23]} 32... Kf8 {[%clk 0:00:12.6]} 33.
Bd1 {[%clk 0:00:18.8]} 33... Ke7 {[%clk 0:00:11.4]} 34. Bf3 {[%clk 0:00:19.2]}
34... d4 {[%clk 0:00:10]} 35. cxd4 {[%clk 0:00:15.5]} 35... cxd4 {[%clk
0:00:10.9]} 36. a3 {[%clk 0:00:05.8]} 36... d3 {[%clk 0:00:11]} 37. Kd4 {[%clk
0:00:06.2]} 37... Bg6 {[%clk 0:00:05.6]} 38. h4 {[%clk 0:00:05.7]} 38... h6
{[%clk 0:00:04.7]} 39. Kc3 {[%clk 0:00:06.1]} 39... Kd6 {[%clk 0:00:04.5]} 40.
Bb7 {[%clk 0:00:06.7]} 40... a5 {[%clk 0:00:04.4]} 41. Ba6 {[%clk 0:00:07.2]}
41... Kc5 {[%clk 0:00:04.7]} 42. b4+ {[%clk 0:00:07]} 42... axb4+ {[%clk
0:00:05.6]} 43. axb4+ {[%clk 0:00:07.9]} 43... Kb6 {[%clk 0:00:05.5]} 44. Bc8
{[%clk 0:00:08.5]} 44... Kc7 {[%clk 0:00:04.7]} 45. Bg4 {[%clk 0:00:08.6]} 45...
Kd6 {[%clk 0:00:04.5]} 46. Bc8 {[%clk 0:00:07.8]} 46... Kc6 {[%clk 0:00:03.8]}
47. Bg4 {[%clk 0:00:07.2]} 47... Be4 {[%clk 0:00:03.5]} 48. Bh5 {[%clk
0:00:05.5]} 48... g6 {[%clk 0:00:03.2]} 49. Bg4 {[%clk 0:00:06.2]} 49... g5
{[%clk 0:00:03]} 50. hxg5 {[%clk 0:00:06.1]} 50... hxg5 {[%clk 0:00:03.9]} 51.
Kd2 {[%clk 0:00:06.7]} 51... Kd5 {[%clk 0:00:03.4]} 52. Ke3 {[%clk 0:00:07.4]}
52... Ke5 {[%clk 0:00:02]} 53. Bd7 {[%clk 0:00:06]} 53... Bd5 {[%clk 0:00:01.3]}
54. Bxb5 {[%clk 0:00:06.2]} 54... d2 {[%clk 0:00:01.4]} 55. Kxd2 {[%clk
0:00:06.3]} 55... Kd4 {[%clk 0:00:02.3]} 56. Bd3 {[%clk 0:00:05.2]} 56... Be6
{[%clk 0:00:02.3]} 57. Kc2 {[%clk 0:00:05.1]} 57... Bd5 {[%clk 0:00:02.3]} 58.
Be2 {[%clk 0:00:05]} 58... Ke3 {[%clk 0:00:02.2]} 59. Ba6 {[%clk 0:00:04.3]}
59... Kf2 {[%clk 0:00:02.2]} 60. g4 {[%clk 0:00:03.6]} 60... Kg3 {[%clk
0:00:02]} 61. Bc8 {[%clk 0:00:04]} 61... Kf4 {[%clk 0:00:01.6]} 62. b5 {[%clk
0:00:04.4]} 62... Ke5 {[%clk 0:00:02.2]} 63. Kc3 {[%clk 0:00:05.2]} 63... Kd6
{[%clk 0:00:02.6]} 64. Kb4 {[%clk 0:00:05.9]} 64... Kc7 {[%clk 0:00:03.2]} 65.
Bf5 {[%clk 0:00:06.4]} 65... Kb6 {[%clk 0:00:03.5]} 66. Bc8 {[%clk 0:00:04.1]}
66... Kc7 {[%clk 0:00:03.5]} 67. Bf5 {[%clk 0:00:05]} 67... Kb6 {[%clk 0:00:04]}
68. Ka4 {[%clk 0:00:05.7]} 68... Bc4 {[%clk 0:00:03.6]} 69. Bd7 {[%clk
0:00:05.5]} 69... Kc7 {[%clk 0:00:04.3]} 70. Kb4 {[%clk 0:00:05.4]} 70... Be2
{[%clk 0:00:03.2]} 71. Be6 {[%clk 0:00:04.3]} 71... Kb6 {[%clk 0:00:03.9]} 72.
Bf5 {[%clk 0:00:04.4]} 72... Bxb5 {[%clk 0:00:03.6]} 73. Kc3 {[%clk 0:00:04.6]}
73... Be2 {[%clk 0:00:03.6]} 74. Kd4 {[%clk 0:00:05]} 74... Kc6 {[%clk
0:00:03.8]} 75. Ke5 {[%clk 0:00:05.9]} 75... Kc5 {[%clk 0:00:03.4]} 76. Kf6
{[%clk 0:00:06.8]} 76... Kd4 {[%clk 0:00:03.7]} 77. Kxg5 {[%clk 0:00:07.7]}
77... Ke5 {[%clk 0:00:04.1]} 78. Kg6 {[%clk 0:00:07.8]} 78... Bxg4 {[%clk
0:00:03.3]} 1/2-1/2

[Event "Early-Titled-Tuesday-Blitz-October-03-2023"]
[Site "Chess.com"]
[Date "2023.10.03"]
[Round "2"]
[White "superfast64"]
[Black "CixPer1968"]
[Result "1-0"]
[WhiteElo "2466"]
[BlackElo "2197"]
[TimeControl "180+1"]
[EndTime "8:19:02 PDT"]
[Termination "superfast64 won on time"]

1. d4 {[%clk 0:03:00.9]} 1... Nf6 {[%clk 0:02:59.1]} 2. Bf4 {[%clk 0:03:00.9]}
2... d5 {[%clk 0:02:58.2]} 3. e3 {[%clk 0:03:00.7]} 3... c5 {[%clk 0:02:58.1]}
4. c3 {[%clk 0:03:00.7]} 4... Nc6 {[%clk 0:02:58.2]} 5. Bd3 {[%clk 0:03:00.6]}
5... Qb6 {[%clk 0:02:57.1]} 6. Qc1 {[%clk 0:02:59.3]} 6... cxd4 {[%clk
0:02:51.4]} 7. exd4 {[%clk 0:02:59.2]} 7... Bg4 {[%clk 0:02:48.4]} 8. Nd2 {[%clk
0:02:58.6]} 8... Rc8 {[%clk 0:02:47.7]} 9. Ngf3 {[%clk 0:02:56.1]} 9... e6
{[%clk 0:02:45.3]} 10. O-O {[%clk 0:02:55.8]} 10... Be7 {[%clk 0:02:44.2]} 11.
Rb1 {[%clk 0:02:50.4]} 11... O-O {[%clk 0:02:43.1]} 12. Qe1 {[%clk 0:02:47.3]}
12... Rfd8 {[%clk 0:02:37.9]} 13. h3 {[%clk 0:02:43.5]} 13... Bh5 {[%clk
0:02:37.4]} 14. Ne5 {[%clk 0:02:43.3]} 14... Nxe5 {[%clk 0:02:35.2]} 15. Bxe5
{[%clk 0:02:43.7]} 15... Bg6 {[%clk 0:02:32.4]} 16. Bxg6 {[%clk 0:02:42.6]}
16... hxg6 {[%clk 0:02:33.3]} 17. Bxf6 {[%clk 0:02:36]} 17... Bxf6 {[%clk
0:02:30.5]} 18. Nf3 {[%clk 0:02:32.8]} 18... Qa5 {[%clk 0:02:24.9]} 19. a3
{[%clk 0:02:32.3]} 19... b5 {[%clk 0:02:24.3]} 20. Qe3 {[%clk 0:02:25.1]} 20...
Qb6 {[%clk 0:02:23]} 21. h4 {[%clk 0:02:16.5]} 21... a5 {[%clk 0:02:21.7]} 22.
Rbd1 {[%clk 0:02:14.6]} 22... b4 {[%clk 0:02:21.4]} 23. axb4 {[%clk 0:02:15.5]}
23... axb4 {[%clk 0:02:21.5]} 24. Rd3 {[%clk 0:02:16]} 24... bxc3 {[%clk
0:02:21]} 25. bxc3 {[%clk 0:02:16.9]} 25... Rc4 {[%clk 0:02:16.2]} 26. Nd2
{[%clk 0:02:11.5]} 26... Rc6 {[%clk 0:02:14.9]} 27. g3 {[%clk 0:02:04.5]} 27...
Rdc8 {[%clk 0:02:07.7]} 28. Rb1 {[%clk 0:01:59.5]} 28... Qa5 {[%clk 0:01:57.5]}
29. Rb3 {[%clk 0:01:57.5]} 29... Qa2 {[%clk 0:01:49.7]} 30. Kg2 {[%clk 0:01:50]}
30... Qc2 {[%clk 0:01:41.5]} 31. Kf1 {[%clk 0:01:39.3]} 31... Qd1+ {[%clk
0:01:38.7]} 32. Qe1 {[%clk 0:01:37.2]} 32... Qc2 {[%clk 0:01:30]} 33. Qb1 {[%clk
0:01:32.9]} 33... Qxb1+ {[%clk 0:01:21.7]} 34. Nxb1 {[%clk 0:01:33.8]} 34... Bd8
{[%clk 0:01:15.7]} 35. f4 {[%clk 0:01:31.1]} 35... Ba5 {[%clk 0:01:15]} 36. Ra3
{[%clk 0:01:24.7]} 36... Bb6 {[%clk 0:01:00.1]} 37. Ke2 {[%clk 0:01:23.7]} 37...
Kf8 {[%clk 0:00:55]} 38. Nd2 {[%clk 0:01:21.9]} 38... Ke7 {[%clk 0:00:52.5]} 39.
Nf3 {[%clk 0:01:21.7]} 39... Bc7 {[%clk 0:00:50.6]} 40. Ra7 {[%clk 0:01:11.9]}
40... Kf8 {[%clk 0:00:42.7]} 41. Kd2 {[%clk 0:01:08.8]} 41... Bd6 {[%clk
0:00:40.1]} 42. Ne5 {[%clk 0:01:00.9]} 42... Bxe5 {[%clk 0:00:39.2]} 43. fxe5
{[%clk 0:01:01.8]} 43... R8c7 {[%clk 0:00:35.6]} 44. Ra8+ {[%clk 0:00:54.8]}
44... Ke7 {[%clk 0:00:35.3]} 45. Rf3 {[%clk 0:00:48.5]} 45... Rb7 {[%clk
0:00:30]} 46. Kc2 {[%clk 0:00:43.9]} 46... Rcb6 {[%clk 0:00:28.4]} 47. Ra2
{[%clk 0:00:42.6]} 47... Rb1 {[%clk 0:00:23]} 48. Kd3 {[%clk 0:00:42]} 48...
Rd1+ {[%clk 0:00:22]} 49. Rd2 {[%clk 0:00:41.1]} 49... Rg1 {[%clk 0:00:21.9]}
50. Rdf2 {[%clk 0:00:40.7]} 50... Ke8 {[%clk 0:00:17.6]} 51. Ke2 {[%clk
0:00:38]} 51... Rc1 {[%clk 0:00:16.8]} 52. Kd3 {[%clk 0:00:36]} 52... Rb3 {[%clk
0:00:15.7]} 53. Rc2 {[%clk 0:00:35.1]} 53... Rcb1 {[%clk 0:00:14.5]} 54. Ke3
{[%clk 0:00:33.9]} 54... Re1+ {[%clk 0:00:14.2]} 55. Kf4 {[%clk 0:00:33.8]}
55... Re4+ {[%clk 0:00:13.6]} 56. Kg5 {[%clk 0:00:33.6]} 56... Rb1 {[%clk
0:00:13.4]} 57. Rcf2 {[%clk 0:00:30.4]} 57... Rb7 {[%clk 0:00:12]} 58. g4 {[%clk
0:00:29.5]} 58... Re1 {[%clk 0:00:10.9]} 59. h5 {[%clk 0:00:28.5]} 59... gxh5
{[%clk 0:00:11.5]} 60. Kxh5 {[%clk 0:00:29.2]} 60... Rh1+ {[%clk 0:00:11.2]} 61.
Kg5 {[%clk 0:00:29.6]} 61... Rh6 {[%clk 0:00:09.2]} 62. Kf4 {[%clk 0:00:29.4]}
62... Rh4 {[%clk 0:00:09]} 63. Kg3 {[%clk 0:00:29.3]} 63... Rh1 {[%clk
0:00:08.8]} 64. Rg2 {[%clk 0:00:28.4]} 64... Rc1 {[%clk 0:00:08.3]} 65. Re2
{[%clk 0:00:27.1]} 65... Rb3 {[%clk 0:00:08.1]} 66. Ree3 {[%clk 0:00:25.8]}
66... Rc2 {[%clk 0:00:08.2]} 67. Kf4 {[%clk 0:00:25.7]} 67... Rbb2 {[%clk
0:00:08.3]} 68. Rh3 {[%clk 0:00:24.4]} 68... Kf8 {[%clk 0:00:07.5]} 69. g5
{[%clk 0:00:23.8]} 69... Rb3 {[%clk 0:00:07]} 70. Ref3 {[%clk 0:00:21]} 70...
Re2 {[%clk 0:00:05.3]} 71. Kg4 {[%clk 0:00:21.2]} 71... Re4+ {[%clk 0:00:05.3]}
72. Rf4 {[%clk 0:00:21.7]} 72... Re2 {[%clk 0:00:05.8]} 73. g6 {[%clk
0:00:21.4]} 73... Re4 {[%clk 0:00:03.9]} 74. gxf7 {[%clk 0:00:20.4]} 74... Rxf4+
{[%clk 0:00:03.6]} 75. Kxf4 {[%clk 0:00:21.3]} 75... Kxf7 {[%clk 0:00:04.2]} 76.
Rf3 {[%clk 0:00:21.9]} 76... Kg6 {[%clk 0:00:04.3]} 77. Rg3+ {[%clk 0:00:22]}
77... Kf7 {[%clk 0:00:04.7]} 78. Kg5 {[%clk 0:00:21.5]} 78... Rb1 {[%clk
0:00:04.1]} 79. Rf3+ {[%clk 0:00:21.9]} 79... Kg8 {[%clk 0:00:03.7]} 80. Rg3
{[%clk 0:00:22]} 80... Rf1 {[%clk 0:00:04]} 81. Kg4 {[%clk 0:00:21.8]} 81... Rf5
{[%clk 0:00:04]} 82. Kh3 {[%clk 0:00:19.5]} 82... g5 {[%clk 0:00:04.1]} 83. Kg4
{[%clk 0:00:19.4]} 83... Kg7 {[%clk 0:00:04.5]} 84. Kh5 {[%clk 0:00:20]} 84...
Rf1 {[%clk 0:00:01]} 85. Rxg5+ {[%clk 0:00:20.5]} 85... Kf7 {[%clk 0:00:01.7]}
86. Rg3 {[%clk 0:00:20.4]} 1-0

[Event "Early-Titled-Tuesday-Blitz-October-03-2023"]
[Site "Chess.com"]
[Date "2023.10.03"]
[Round "2"]
[White "agustinv04"]
[Black "Ducke13"]
[Result "0-1"]
[WhiteElo "2303"]
[BlackElo "2512"]
[TimeControl "180+1"]
[EndTime "8:19:07 PDT"]
[Termination "Ducke13 won on time"]

1. e4 {[%clk 0:03:00.9]} 1... c5 {[%clk 0:02:53.1]} 2. Nf3 {[%clk 0:03:00.8]}
2... d6 {[%clk 0:02:49.1]} 3. d4 {[%clk 0:03:01.1]} 3... cxd4 {[%clk 0:02:46.6]}
4. Nxd4 {[%clk 0:03:02]} 4... Nf6 {[%clk 0:02:46.3]} 5. Nc3 {[%clk 0:03:02]}
5... a6 {[%clk 0:02:46.2]} 6. h3 {[%clk 0:03:02.6]} 6... e5 {[%clk 0:02:44.8]}
7. Nb3 {[%clk 0:03:03.2]} 7... Be6 {[%clk 0:02:31.5]} 8. f4 {[%clk 0:03:02.8]}
8... Be7 {[%clk 0:02:22.1]} 9. Be3 {[%clk 0:02:36.9]} 9... exf4 {[%clk
0:02:12.3]} 10. Bxf4 {[%clk 0:02:36.2]} 10... Nc6 {[%clk 0:02:13]} 11. Qe2
{[%clk 0:02:13.1]} 11... Ne5 {[%clk 0:02:10.8]} 12. O-O-O {[%clk 0:02:11.5]}
12... Nfd7 {[%clk 0:02:11.1]} 13. Nd5 {[%clk 0:02:05.1]} 13... O-O {[%clk
0:02:07.9]} 14. Nxe7+ {[%clk 0:02:02.6]} 14... Qxe7 {[%clk 0:02:08.8]} 15. Kb1
{[%clk 0:02:00.1]} 15... Rfc8 {[%clk 0:01:51.3]} 16. Nd4 {[%clk 0:01:59.5]}
16... a5 {[%clk 0:01:24.7]} 17. Nf5 {[%clk 0:01:43.1]} 17... Bxf5 {[%clk
0:01:24]} 18. exf5 {[%clk 0:01:44]} 18... Rc6 {[%clk 0:01:07.1]} 19. g4 {[%clk
0:01:42.8]} 19... Rac8 {[%clk 0:01:04]} 20. c3 {[%clk 0:01:13.8]} 20... a4
{[%clk 0:01:02.5]} 21. Bg2 {[%clk 0:01:13.6]} 21... Rb6 {[%clk 0:00:59.5]} 22.
Be3 {[%clk 0:01:07.1]} 22... Nc5 {[%clk 0:00:55.2]} 23. Rhe1 {[%clk 0:00:59.8]}
23... a3 {[%clk 0:00:50.8]} 24. b4 {[%clk 0:00:55.3]} 24... Na4 {[%clk
0:00:45.4]} 25. Rc1 {[%clk 0:00:41.9]} 25... Rxc3 {[%clk 0:00:29.1]} 26. Bxb6
{[%clk 0:00:37.5]} 26... Rxc1+ {[%clk 0:00:29.3]} 27. Rxc1 {[%clk 0:00:36]}
27... Nxb6 {[%clk 0:00:28.8]} 28. Qe3 {[%clk 0:00:30.3]} 28... Nbd7 {[%clk
0:00:26.9]} 29. Rc8+ {[%clk 0:00:29.1]} 29... Nf8 {[%clk 0:00:27]} 30. g5 {[%clk
0:00:19.9]} 30... Qd7 {[%clk 0:00:18.9]} 31. Rb8 {[%clk 0:00:17.4]} 31... Qxf5+
{[%clk 0:00:18.6]} 32. Be4 {[%clk 0:00:17.8]} 32... Qf1+ {[%clk 0:00:17.5]} 33.
Kc2 {[%clk 0:00:18.4]} 33... Qc4+ {[%clk 0:00:16.9]} 34. Kd1 {[%clk 0:00:17.4]}
34... Qxb4 {[%clk 0:00:12.9]} 35. Rxb7 {[%clk 0:00:17.7]} 35... Qa4+ {[%clk
0:00:08.2]} 36. Qb3 {[%clk 0:00:16.8]} 36... Qxe4 {[%clk 0:00:05.7]} 37. Rb8
{[%clk 0:00:14.7]} 37... Qd3+ {[%clk 0:00:05.8]} 38. Qxd3 {[%clk 0:00:14.4]}
38... Nxd3 {[%clk 0:00:06.7]} 39. Kc2 {[%clk 0:00:12.4]} 39... Nf2 {[%clk
0:00:06.8]} 40. h4 {[%clk 0:00:12]} 40... h6 {[%clk 0:00:06.5]} 41. gxh6 {[%clk
0:00:12.4]} 41... gxh6 {[%clk 0:00:06.3]} 42. Kb3 {[%clk 0:00:13.3]} 42... Kg7
{[%clk 0:00:03.8]} 43. Kxa3 {[%clk 0:00:13.7]} 43... Ng6 {[%clk 0:00:04.5]} 44.
h5 {[%clk 0:00:12.8]} 44... Nf4 {[%clk 0:00:04.9]} 45. Rb5 {[%clk 0:00:11.7]}
45... N2d3 {[%clk 0:00:04]} 46. Kb3 {[%clk 0:00:10.8]} 46... Nc5+ {[%clk
0:00:04.2]} 47. Kc4 {[%clk 0:00:11]} 47... Nxh5 {[%clk 0:00:04.2]} 48. Rb6
{[%clk 0:00:10.7]} 48... Ne4 {[%clk 0:00:02.9]} 49. Kd5 {[%clk 0:00:10.4]} 49...
f5 {[%clk 0:00:03]} 50. a4 {[%clk 0:00:08.6]} 50... Nhf6+ {[%clk 0:00:03.5]} 51.
Kd4 {[%clk 0:00:08.7]} 51... Nc5 {[%clk 0:00:03.6]} 52. a5 {[%clk 0:00:08.8]}
52... Nfe4 {[%clk 0:00:03]} 53. a6 {[%clk 0:00:06.6]} 53... Nxa6 {[%clk
0:00:03.6]} 54. Rxa6 {[%clk 0:00:07.5]} 54... h5 {[%clk 0:00:03.9]} 55. Ke3
{[%clk 0:00:08]} 55... Kf6 {[%clk 0:00:03.6]} 56. Kf4 {[%clk 0:00:08.4]} 56...
Ke6 {[%clk 0:00:03.9]} 57. Ra8 {[%clk 0:00:08.9]} 57... Nf6 {[%clk 0:00:03.4]}
58. Rh8 {[%clk 0:00:09]} 58... d5 {[%clk 0:00:03.6]} 59. Rd8 {[%clk 0:00:08.8]}
59... Nd7 {[%clk 0:00:03.2]} 60. Re8+ {[%clk 0:00:08.4]} 60... Kd6 {[%clk
0:00:03.4]} 61. Rh8 {[%clk 0:00:08.8]} 61... d4 {[%clk 0:00:03.3]} 62. Rxh5
{[%clk 0:00:09.1]} 62... Ke6 {[%clk 0:00:03]} 63. Rh6+ {[%clk 0:00:09.4]} 63...
Nf6 {[%clk 0:00:03.5]} 64. Rh8 {[%clk 0:00:07.9]} 64... Nd5+ {[%clk 0:00:04.1]}
65. Kf3 {[%clk 0:00:07.7]} 65... Ne7 {[%clk 0:00:04.4]} 66. Rh6+ {[%clk
0:00:07.4]} 66... Ke5 {[%clk 0:00:04.5]} 67. Ke2 {[%clk 0:00:06.5]} 67... Nd5
{[%clk 0:00:04.5]} 68. Rh8 {[%clk 0:00:06.7]} 68... Nf4+ {[%clk 0:00:03.5]} 69.
Kd2 {[%clk 0:00:06.8]} 69... Ne6 {[%clk 0:00:04]} 70. Re8 {[%clk 0:00:07.1]}
70... Kd5 {[%clk 0:00:03.9]} 71. Kd3 {[%clk 0:00:07.6]} 71... f4 {[%clk
0:00:04.2]} 72. Re7 {[%clk 0:00:03.1]} 72... Nc5+ {[%clk 0:00:03.9]} 73. Kd2
{[%clk 0:00:03.1]} 73... Ne4+ {[%clk 0:00:04.3]} 74. Kd3 {[%clk 0:00:03]} 74...
Nd6 {[%clk 0:00:04.5]} 75. Rd7 {[%clk 0:00:02.5]} 75... f3 {[%clk 0:00:04.5]}
76. Re7 {[%clk 0:00:01.2]} 76... Nf5 {[%clk 0:00:04.2]} 0-1

[Event "Early-Titled-Tuesday-Blitz-October-03-2023"]
[Site "Chess.com"]
[Date "2023.10.03"]
[Round "2"]
[White "AvitalBor"]
[Black "goldihouse"]
[Result "1/2-1/2"]
[WhiteElo "2864"]
[BlackElo "2607"]
[TimeControl "180+1"]
[EndTime "8:19:12 PDT"]
[Termination "Game drawn by repetition"]

1. e4 {[%clk 0:02:48.5]} 1... e6 {[%clk 0:02:59.6]} 2. Qe2 {[%clk 0:02:47.4]}
2... d5 {[%clk 0:03:00.5]} 3. exd5 {[%clk 0:02:48.3]} 3... Qxd5 {[%clk
0:03:00.7]} 4. Nc3 {[%clk 0:02:48.2]} 4... Qd8 {[%clk 0:03:00.8]} 5. Nf3 {[%clk
0:02:48.2]} 5... c5 {[%clk 0:02:59.7]} 6. g3 {[%clk 0:02:44.5]} 6... Nc6 {[%clk
0:02:59.2]} 7. Bg2 {[%clk 0:02:45]} 7... Nge7 {[%clk 0:02:59.9]} 8. O-O {[%clk
0:02:44]} 8... Nf5 {[%clk 0:03:00]} 9. Ne4 {[%clk 0:02:44.1]} 9... Be7 {[%clk
0:02:59.7]} 10. c3 {[%clk 0:02:43.2]} 10... O-O {[%clk 0:02:59.5]} 11. Rd1
{[%clk 0:02:41.6]} 11... b6 {[%clk 0:02:57]} 12. g4 {[%clk 0:02:41]} 12... Nd6
{[%clk 0:02:41.6]} 13. d4 {[%clk 0:02:40.7]} 13... Nxe4 {[%clk 0:02:07.8]} 14.
Qxe4 {[%clk 0:02:41.6]} 14... Bb7 {[%clk 0:01:59.8]} 15. Bf4 {[%clk 0:02:40.2]}
15... Qc8 {[%clk 0:01:23.3]} 16. dxc5 {[%clk 0:02:39.9]} 16... Bxc5 {[%clk
0:01:20.7]} 17. Ng5 {[%clk 0:02:38.8]} 17... g6 {[%clk 0:01:16.3]} 18. Qf3
{[%clk 0:02:26.8]} 18... e5 {[%clk 0:01:09.3]} 19. Qh3 {[%clk 0:02:23.4]} 19...
h5 {[%clk 0:01:09.2]} 20. Bg3 {[%clk 0:02:06.9]} 20... Qxg4 {[%clk 0:01:05.7]}
21. Qxg4 {[%clk 0:02:05.2]} 21... hxg4 {[%clk 0:01:06.6]} 22. Rd7 {[%clk
0:02:04.9]} 22... Rab8 {[%clk 0:00:54.5]} 23. Rxb7 {[%clk 0:02:03.4]} 23... Rxb7
{[%clk 0:00:55.1]} 24. Bxc6 {[%clk 0:02:03.7]} 24... Re7 {[%clk 0:00:52.6]} 25.
Rd1 {[%clk 0:01:58.4]} 25... a5 {[%clk 0:00:52.2]} 26. Ne4 {[%clk 0:01:54]}
26... f6 {[%clk 0:00:50.7]} 27. a3 {[%clk 0:01:33.9]} 27... Rc7 {[%clk
0:00:49.2]} 28. Bd5+ {[%clk 0:01:29.5]} 28... Kg7 {[%clk 0:00:49.1]} 29. Be6
{[%clk 0:01:28.2]} 29... Be7 {[%clk 0:00:39.9]} 30. Bxg4 {[%clk 0:01:27.2]}
30... Rd8 {[%clk 0:00:40.5]} 31. Rxd8 {[%clk 0:01:25.7]} 31... Bxd8 {[%clk
0:00:41.4]} 32. Nd6 {[%clk 0:01:17.1]} 32... Rc6 {[%clk 0:00:40.8]} 33. Nb5
{[%clk 0:01:12.5]} 33... Rc5 {[%clk 0:00:35.2]} 34. Be2 {[%clk 0:01:12.6]} 34...
Rd5 {[%clk 0:00:34.2]} 35. Kf1 {[%clk 0:01:06.8]} 35... Rd2 {[%clk 0:00:32.4]}
36. b4 {[%clk 0:01:07.3]} 36... g5 {[%clk 0:00:32.1]} 37. f3 {[%clk 0:01:02.7]}
37... Rb2 {[%clk 0:00:25.4]} 38. h4 {[%clk 0:00:53]} 38... Rb1+ {[%clk
0:00:22.7]} 39. Kf2 {[%clk 0:00:52.2]} 39... Kg6 {[%clk 0:00:22]} 40. hxg5
{[%clk 0:00:52]} 40... Kxg5 {[%clk 0:00:22.2]} 41. Ke3 {[%clk 0:00:51.5]} 41...
Rb2 {[%clk 0:00:21.9]} 42. Kd3 {[%clk 0:00:51.2]} 42... Kf5 {[%clk 0:00:20.5]}
43. Bf2 {[%clk 0:00:49.9]} 43... Ke6 {[%clk 0:00:19.7]} 44. Be3 {[%clk
0:00:47.2]} 44... f5 {[%clk 0:00:19.8]} 45. Bc1 {[%clk 0:00:47]} 45... Ra2
{[%clk 0:00:19.2]} 46. Ke3 {[%clk 0:00:45.4]} 46... Bg5+ {[%clk 0:00:18.8]} 47.
f4 {[%clk 0:00:42]} 47... Bxf4+ {[%clk 0:00:18.8]} 48. Kf3 {[%clk 0:00:42.3]}
48... Bxc1 {[%clk 0:00:19.7]} 49. Bc4+ {[%clk 0:00:42.3]} 49... Kf6 {[%clk
0:00:18.7]} 50. Bxa2 {[%clk 0:00:43.2]} 50... e4+ {[%clk 0:00:17.7]} 51. Kf2
{[%clk 0:00:42.5]} 51... Ke5 {[%clk 0:00:18.6]} 52. bxa5 {[%clk 0:00:39.4]}
52... bxa5 {[%clk 0:00:17.7]} 53. a4 {[%clk 0:00:37.2]} 53... f4 {[%clk
0:00:16.8]} 54. Nd4 {[%clk 0:00:32.7]} 54... Be3+ {[%clk 0:00:17.7]} 55. Ke2
{[%clk 0:00:31.6]} 55... Bxd4 {[%clk 0:00:18.6]} 56. cxd4+ {[%clk 0:00:32.4]}
56... Kxd4 {[%clk 0:00:19.4]} 57. Be6 {[%clk 0:00:25.3]} 57... Ke5 {[%clk
0:00:19.2]} 58. Bc8 {[%clk 0:00:21.3]} 58... Kd4 {[%clk 0:00:20.1]} 59. Bf5
{[%clk 0:00:20.3]} 59... Ke5 {[%clk 0:00:21]} 60. Bh7 {[%clk 0:00:20.1]} 60...
Kd4 {[%clk 0:00:21.6]} 61. Kf2 {[%clk 0:00:20.3]} 61... Kd3 {[%clk 0:00:21.4]}
62. Bg6 {[%clk 0:00:20.2]} 62... Kd4 {[%clk 0:00:21.4]} 63. Ke2 {[%clk
0:00:20.5]} 63... Ke5 {[%clk 0:00:21.4]} 64. Kd2 {[%clk 0:00:20.7]} 64... Kd4
{[%clk 0:00:22]} 65. Bh7 {[%clk 0:00:20.4]} 65... Kd5 {[%clk 0:00:21.9]} 66. Kc3
{[%clk 0:00:20.3]} 66... Ke5 {[%clk 0:00:22]} 67. Kd2 {[%clk 0:00:20.3]} 67...
Kd4 {[%clk 0:00:22.1]} 68. Ke2 {[%clk 0:00:20.7]} 68... Ke5 {[%clk 0:00:21.8]}
69. Bg6 {[%clk 0:00:19.8]} 69... Kd4 {[%clk 0:00:22.3]} 70. Be8 {[%clk 0:00:19]}
70... Ke5 {[%clk 0:00:22.5]} 71. Bc6 {[%clk 0:00:19]} 71... Kd4 {[%clk
0:00:23.1]} 72. Bb7 {[%clk 0:00:18.5]} 72... Ke5 {[%clk 0:00:23.4]} 73. Kd2
{[%clk 0:00:13.7]} 73... Kd4 {[%clk 0:00:23.7]} 74. Bc6 {[%clk 0:00:14.3]} 74...
Ke5 {[%clk 0:00:23.8]} 75. Be8 {[%clk 0:00:13.7]} 75... Kd4 {[%clk 0:00:23.9]}
76. Ke2 {[%clk 0:00:14.1]} 76... Ke5 {[%clk 0:00:23.9]} 77. Bg6 {[%clk
0:00:14.8]} 77... Kd4 {[%clk 0:00:24.2]} 78. Kf2 {[%clk 0:00:13.7]} 78... Kd3
{[%clk 0:00:23.6]} 79. Bf5 {[%clk 0:00:13.3]} 79... Kd4 {[%clk 0:00:23.8]} 80.
Ke2 {[%clk 0:00:12.9]} 80... Ke5 {[%clk 0:00:23.9]} 81. Bh7 {[%clk 0:00:13.5]}
81... Kd4 {[%clk 0:00:24.8]} 82. Bg6 {[%clk 0:00:13.6]} 82... Ke5 {[%clk
0:00:25.1]} 83. Bh7 {[%clk 0:00:13.8]} 1/2-1/2